[Event "Titled Tuesday Blitz March 22 Late 2022"]
[White "Ansh M Shah"]
[Black "Sanchez Alvares, Kelvin Antonio"]
[WhiteFideId "25033379"]
[BlackFideId "3906680"]
[WhiteElo "1819"]
[BlackElo "2193"]
[Result "1-0"]
[Round "06"]
[TimeControl "180+1"]
[Date "2022.03.22"]
[WhiteClock "0:00:17"]
[BlackClock "0:01:22"]

1. d4 {[%clk 0:03:00]}  d5 {[%clk 0:02:50]} 2. c4 {[%clk 0:02:58]}  c6 {[%clk 0:02:49]} 3. cxd5 {[%clk 0:02:58]}  cxd5 {[%clk 0:02:47]} 4. Nc3 {[%clk 0:02:59]}  Nc6 {[%clk 0:02:47]} 5. Bf4 {[%clk 0:02:59]}  e5 {[%clk 0:02:45]} 6. dxe5 {[%clk 0:02:59]}  d4 {[%clk 0:02:45]} 7. Ne4 {[%clk 0:01:52]}  Bf5 {[%clk 0:02:44]} 8. Ng3 {[%clk 0:01:31]}  Bg6 {[%clk 0:02:42]} 9. a3 {[%clk 0:01:19]}  Qb6 {[%clk 0:02:34]} 10. Nf3 {[%clk 0:01:09]}  Qxb2 {[%clk 0:02:31]} 11. Qc1 {[%clk 0:00:45]}  Qxc1+ {[%clk 0:02:23]} 12. Bxc1 {[%clk 0:00:45]}  Nge7 {[%clk 0:02:22]} 13. e3 {[%clk 0:00:42]}  dxe3 {[%clk 0:02:20]} 14. Bxe3 {[%clk 0:00:43]}  Nd5 {[%clk 0:02:19]} 15. Bd2 {[%clk 0:00:39]}  Bc5 {[%clk 0:02:16]} 16. Bb5 {[%clk 0:00:38]}  O-O {[%clk 0:02:11]} 17. Bxc6 {[%clk 0:00:35]}  bxc6 {[%clk 0:02:12]} 18. O-O {[%clk 0:00:35]}  Bb6 {[%clk 0:02:10]} 19. Rfc1 {[%clk 0:00:35]}  Rfc8 {[%clk 0:02:09]} 20. a4 {[%clk 0:00:35]}  a5 {[%clk 0:02:09]} 21. Nh4 {[%clk 0:00:32]}  Bd3 {[%clk 0:02:05]} 22. Ra3 {[%clk 0:00:32]}  Ba6 {[%clk 0:02:00]} 23. Nhf5 {[%clk 0:00:31]}  g6 {[%clk 0:01:51]} 24. Nd6 {[%clk 0:00:31]}  Rc7 {[%clk 0:01:45]} 25. Nc4 {[%clk 0:00:29]}  Bc5 {[%clk 0:01:40]} 26. Rb3 {[%clk 0:00:29]}  Bb4 {[%clk 0:01:37]} 27. Bxb4 {[%clk 0:00:28]}  axb4 {[%clk 0:01:37]} 28. Ne4 {[%clk 0:00:26]}  Bxc4 {[%clk 0:01:36]} 29. Rxc4 {[%clk 0:00:26]}  Rxa4 {[%clk 0:01:35]} 30. g3 {[%clk 0:00:24]}  Ra3 {[%clk 0:01:29]} 31. Rxa3 {[%clk 0:00:20]}  bxa3 {[%clk 0:01:27]} 32. Ra4 {[%clk 0:00:20]}  c5 {[%clk 0:01:25]} 33. Rxa3 {[%clk 0:00:20]}  c4 {[%clk 0:01:26]} 34. Ra2 {[%clk 0:00:19]}  Nb4 {[%clk 0:01:23]} 35. Rb2 {[%clk 0:00:17]}  Nd3 {[%clk 0:01:23]} 36. Rc2 {[%clk 0:00:17]}  Nxe5 {[%clk 0:01:23]} 37. Nf6+ {[%clk 0:00:16]}  Kg7 {[%clk 0:01:22]} 38. Ne8+ {[%clk 0:00:17]} 1-0


[Site "https://www.chess.com"]

[Event "Titled Tuesday Blitz March 22 Late 2022"]
[White "Antonio, Jorge Carlos"]
[Black "Horak, Martin"]
[WhiteFideId "113190"]
[BlackFideId "367095"]
[WhiteElo "2247"]
[BlackElo "1997"]
[Result "0-1"]
[Round "06"]
[TimeControl "180+1"]
[Date "2022.03.22"]
[WhiteClock "0:00:08"]
[BlackClock "0:00:03"]

1. d4 {[%clk 0:03:00]}  Nf6 {[%clk 0:02:59]} 2. Nf3 {[%clk 0:02:59]}  c5 {[%clk 0:02:59]} 3. e3 {[%clk 0:02:59]}  g6 {[%clk 0:02:56]} 4. c3 {[%clk 0:02:59]}  Bg7 {[%clk 0:02:56]} 5. dxc5 {[%clk 0:02:59]}  O-O {[%clk 0:02:55]} 6. b4 {[%clk 0:02:59]}  a5 {[%clk 0:02:55]} 7. a3 {[%clk 0:02:57]}  b6 {[%clk 0:02:39]} 8. cxb6 {[%clk 0:02:54]}  Qxb6 {[%clk 0:02:40]} 9. Qd4 {[%clk 0:02:49]}  Qc7 {[%clk 0:02:32]} 10. b5 {[%clk 0:02:45]}  d5 {[%clk 0:02:18]} 11. a4 {[%clk 0:02:34]}  Nbd7 {[%clk 0:02:16]} 12. Ba3 {[%clk 0:02:28]}  Re8 {[%clk 0:02:13]} 13. Be2 {[%clk 0:02:25]}  Nb6 {[%clk 0:02:05]} 14. Qc5 {[%clk 0:02:21]}  Qd8 {[%clk 0:01:53]} 15. O-O {[%clk 0:02:19]}  Ne4 {[%clk 0:01:38]} 16. Qc6 {[%clk 0:01:55]}  Bd7 {[%clk 0:00:58]} 17. Qb7 {[%clk 0:01:51]}  Nxa4 {[%clk 0:00:39]} 18. Qxd5 {[%clk 0:01:41]}  Naxc3 {[%clk 0:00:30]} 19. Nxc3 {[%clk 0:01:38]}  Nxc3 {[%clk 0:00:31]} 20. Qc4 {[%clk 0:01:23]}  Nxe2+ {[%clk 0:00:30]} 21. Qxe2 {[%clk 0:01:22]}  Bxa1 {[%clk 0:00:26]} 22. Rxa1 {[%clk 0:01:22]}  Qb6 {[%clk 0:00:22]} 23. h3 {[%clk 0:01:20]}  Qxb5 {[%clk 0:00:21]} 24. Qxb5 {[%clk 0:01:16]}  Bxb5 {[%clk 0:00:22]} 25. Nd4 {[%clk 0:01:16]}  Bd7 {[%clk 0:00:21]} 26. Rc1 {[%clk 0:01:14]}  e5 {[%clk 0:00:21]} 27. Nf3 {[%clk 0:01:13]}  Rac8 {[%clk 0:00:14]} 28. Rd1 {[%clk 0:01:12]}  Bc6 {[%clk 0:00:12]} 29. Rd6 {[%clk 0:00:56]}  Bxf3 {[%clk 0:00:12]} 30. gxf3 {[%clk 0:00:56]}  Rc3 {[%clk 0:00:07]} 31. Bb2 {[%clk 0:00:52]}  Rb3 {[%clk 0:00:07]} 32. Rd2 {[%clk 0:00:44]}  a4 {[%clk 0:00:06]} 33. f4 {[%clk 0:00:42]}  a3 {[%clk 0:00:05]} 34. Bxe5 {[%clk 0:00:42]}  Ra8 {[%clk 0:00:03]} 35. h4 {[%clk 0:00:38]}  a2 {[%clk 0:00:02]} 36. h5 {[%clk 0:00:34]}  a1=Q+ {[%clk 0:00:02]} 37. Bxa1 {[%clk 0:00:33]}  Rxa1+ {[%clk 0:00:02]} 38. Kg2 {[%clk 0:00:33]}  Ra8 {[%clk 0:00:03]} 39. h6 {[%clk 0:00:33]}  Rbb8 {[%clk 0:00:02]} 40. Kf3 {[%clk 0:00:33]}  Rd8 {[%clk 0:00:03]} 41. Rc2 {[%clk 0:00:32]}  Rac8 {[%clk 0:00:04]} 42. Kg4 {[%clk 0:00:32]}  Re8 {[%clk 0:00:04]} 43. Rb2 {[%clk 0:00:31]}  Red8 {[%clk 0:00:05]} 44. Rb7 {[%clk 0:00:31]}  Rc6 {[%clk 0:00:05]} 45. e4 {[%clk 0:00:30]}  Rcd6 {[%clk 0:00:05]} 46. f3 {[%clk 0:00:30]}  R6d7 {[%clk 0:00:06]} 47. Rb6 {[%clk 0:00:30]}  f6 {[%clk 0:00:06]} 48. f5 {[%clk 0:00:29]}  gxf5+ {[%clk 0:00:06]} 49. Kxf5 {[%clk 0:00:29]}  Rd6 {[%clk 0:00:04]} 50. Rb7 {[%clk 0:00:29]}  R6d7 {[%clk 0:00:05]} 51. Rb6 {[%clk 0:00:29]}  Rf7 {[%clk 0:00:04]} 52. f4 {[%clk 0:00:28]}  Re8 {[%clk 0:00:04]} 53. Rd6 {[%clk 0:00:26]}  Ref8 {[%clk 0:00:04]} 54. Rb6 {[%clk 0:00:23]}  Ra8 {[%clk 0:00:04]} 55. Rb3 {[%clk 0:00:21]}  Ra5+ {[%clk 0:00:04]} 56. Kg4 {[%clk 0:00:20]}  Re7 {[%clk 0:00:03]} 57. Rb8+ {[%clk 0:00:17]}  Kf7 {[%clk 0:00:03]} 58. Rh8 {[%clk 0:00:17]}  Kg6 {[%clk 0:00:04]} 59. Rf8 {[%clk 0:00:13]}  Ra6 {[%clk 0:00:03]} 60. f5+ {[%clk 0:00:12]}  Kxh6 {[%clk 0:00:03]} 61. Kf4 {[%clk 0:00:10]}  Kg7 {[%clk 0:00:03]} 62. Rc8 {[%clk 0:00:09]}  Ra4 {[%clk 0:00:04]} 63. Rc3 {[%clk 0:00:09]}  Raxe4+ {[%clk 0:00:04]} 64. Kf3 {[%clk 0:00:09]}  Kh6 {[%clk 0:00:03]} 65. Rc2 {[%clk 0:00:09]}  Re3+ {[%clk 0:00:03]} 66. Kg4 {[%clk 0:00:08]}  R7e4# {[%clk 0:00:03]} 0-1


[Site "https://www.chess.com"]

[Event "Titled Tuesday Blitz March 22 Late 2022"]
[White "Antonova, Nadezhda"]
[Black "Vine, Elzbieta"]
[WhiteFideId "14700182"]
[BlackFideId "1119320"]
[WhiteElo "1751"]
[BlackElo "1833"]
[Result "1-0"]
[Round "06"]
[TimeControl "180+1"]
[Date "2022.03.22"]
[WhiteClock "0:00:41"]
[BlackClock "0:00:04"]

1. Nf3 {[%clk 0:02:59]}  d5 {[%clk 0:02:54]} 2. b3 {[%clk 0:02:59]}  c5 {[%clk 0:02:51]} 3. Bb2 {[%clk 0:03:00]}  Nc6 {[%clk 0:02:51]} 4. e3 {[%clk 0:03:00]}  Nf6 {[%clk 0:02:49]} 5. Bb5 {[%clk 0:03:01]}  Bg4 {[%clk 0:02:46]} 6. h3 {[%clk 0:02:59]}  Bh5 {[%clk 0:02:45]} 7. g4 {[%clk 0:02:59]}  Bg6 {[%clk 0:02:44]} 8. Ne5 {[%clk 0:02:59]}  Qc7 {[%clk 0:02:34]} 9. d3 {[%clk 0:02:57]}  a6 {[%clk 0:02:32]} 10. Bxc6+ {[%clk 0:02:57]}  bxc6 {[%clk 0:02:31]} 11. h4 {[%clk 0:02:55]}  d4 {[%clk 0:02:23]} 12. exd4 {[%clk 0:02:49]}  cxd4 {[%clk 0:02:22]} 13. Bxd4 {[%clk 0:02:49]}  c5 {[%clk 0:02:21]} 14. Bc3 {[%clk 0:02:48]}  c4 {[%clk 0:02:12]} 15. bxc4 {[%clk 0:02:43]}  e6 {[%clk 0:02:08]} 16. h5 {[%clk 0:02:41]}  Bd6 {[%clk 0:02:07]} 17. Qe2 {[%clk 0:02:29]}  Bxe5 {[%clk 0:01:53]} 18. Qxe5 {[%clk 0:02:27]}  Qxe5+ {[%clk 0:01:51]} 19. Bxe5 {[%clk 0:02:28]}  Nxg4 {[%clk 0:01:50]} 20. Bxg7 {[%clk 0:02:24]}  Rg8 {[%clk 0:01:47]} 21. hxg6 {[%clk 0:02:24]}  hxg6 {[%clk 0:01:39]} 22. Rh8 {[%clk 0:02:17]}  Rxh8 {[%clk 0:01:37]} 23. Bxh8 {[%clk 0:02:17]}  Kd7 {[%clk 0:01:36]} 24. Bc3 {[%clk 0:02:16]}  Rb8 {[%clk 0:01:32]} 25. Nd2 {[%clk 0:02:15]}  e5 {[%clk 0:01:31]} 26. Ke2 {[%clk 0:02:13]}  f6 {[%clk 0:01:29]} 27. f3 {[%clk 0:02:10]}  Nh6 {[%clk 0:01:27]} 28. Rh1 {[%clk 0:02:10]}  Nf7 {[%clk 0:01:25]} 29. Rh7 {[%clk 0:02:09]}  Ke6 {[%clk 0:01:25]} 30. Ne4 {[%clk 0:02:10]}  Rc8 {[%clk 0:01:19]} 31. Rg7 {[%clk 0:02:05]}  g5 {[%clk 0:01:14]} 32. Rg6 {[%clk 0:02:00]}  Ke7 {[%clk 0:00:59]} 33. Rxf6 {[%clk 0:01:58]}  Rh8 {[%clk 0:00:54]} 34. Bb4+ {[%clk 0:01:57]}  Ke8 {[%clk 0:00:52]} 35. Rxf7 {[%clk 0:01:50]}  Kxf7 {[%clk 0:00:50]} 36. Nxg5+ {[%clk 0:01:50]}  Kg6 {[%clk 0:00:48]} 37. Ne4 {[%clk 0:01:50]}  Rh2+ {[%clk 0:00:46]} 38. Nf2 {[%clk 0:01:51]}  Kf5 {[%clk 0:00:44]} 39. a4 {[%clk 0:01:47]}  Kf4 {[%clk 0:00:44]} 40. Bd2+ {[%clk 0:01:44]}  Kg3 {[%clk 0:00:43]} 41. Be3 {[%clk 0:01:45]}  Rg2 {[%clk 0:00:35]} 42. a5 {[%clk 0:01:41]}  Rh2 {[%clk 0:00:32]} 43. Bb6 {[%clk 0:01:39]}  Rg2 {[%clk 0:00:28]} 44. c3 {[%clk 0:01:32]}  Rh2 {[%clk 0:00:26]} 45. Kf1 {[%clk 0:01:26]}  Kxf3 {[%clk 0:00:25]} 46. Ke1 {[%clk 0:01:08]}  Rg2 {[%clk 0:00:23]} 47. Ne4 {[%clk 0:00:57]}  Rh2 {[%clk 0:00:20]} 48. c5 {[%clk 0:00:54]}  Rh1+ {[%clk 0:00:18]} 49. Kd2 {[%clk 0:00:55]}  Rh2+ {[%clk 0:00:18]} 50. Kc1 {[%clk 0:00:55]}  Rh1+ {[%clk 0:00:16]} 51. Kc2 {[%clk 0:00:55]}  Rh2+ {[%clk 0:00:16]} 52. Kb3 {[%clk 0:00:56]}  Ke2 {[%clk 0:00:13]} 53. Kc4 {[%clk 0:00:49]}  Rh4 {[%clk 0:00:11]} 54. c6 {[%clk 0:00:48]}  Rh8 {[%clk 0:00:09]} 55. c7 {[%clk 0:00:46]}  Rg8 {[%clk 0:00:07]} 56. Nd6 {[%clk 0:00:41]}  Rg4+ {[%clk 0:00:04]} 57. Kd5 {[%clk 0:00:41]} 1-0


[Site "https://www.chess.com"]

[Event "Titled Tuesday Blitz March 22 Late 2022"]
[White "Ardila, Oscar Humberto"]
[Black "Papp, Petra"]
[WhiteFideId "4404742"]
[BlackFideId "739049"]
[WhiteElo "1966"]
[BlackElo "2259"]
[Result "0-1"]
[Round "06"]
[TimeControl "180+1"]
[Date "2022.03.22"]
[WhiteClock "0:00:07"]
[BlackClock "0:00:08"]

1. d4 {[%clk 0:03:00]}  f5 {[%clk 0:02:04]} 2. c4 {[%clk 0:02:58]}  Nf6 {[%clk 0:02:03]} 3. Nc3 {[%clk 0:02:58]}  d6 {[%clk 0:02:03]} 4. Nf3 {[%clk 0:02:58]}  g6 {[%clk 0:02:03]} 5. g3 {[%clk 0:02:59]}  Bg7 {[%clk 0:02:03]} 6. Bg2 {[%clk 0:02:59]}  O-O {[%clk 0:02:03]} 7. O-O {[%clk 0:02:59]}  c6 {[%clk 0:02:04]} 8. Qc2 {[%clk 0:02:57]}  Na6 {[%clk 0:02:01]} 9. e3 {[%clk 0:02:47]}  Qc7 {[%clk 0:01:58]} 10. a3 {[%clk 0:02:44]}  e5 {[%clk 0:01:56]} 11. dxe5 {[%clk 0:02:44]}  dxe5 {[%clk 0:01:55]} 12. b4 {[%clk 0:02:44]}  Be6 {[%clk 0:01:47]} 13. Nd2 {[%clk 0:02:37]}  e4 {[%clk 0:01:46]} 14. Bb2 {[%clk 0:02:35]}  Rad8 {[%clk 0:01:44]} 15. Rfd1 {[%clk 0:02:34]}  Ng4 {[%clk 0:01:43]} 16. c5 {[%clk 0:02:03]}  Ne5 {[%clk 0:01:41]} 17. Nb3 {[%clk 0:01:59]}  Nd3 {[%clk 0:01:40]} 18. Nd4 {[%clk 0:01:56]}  Bf7 {[%clk 0:01:35]} 19. Nce2 {[%clk 0:01:49]}  Nxb2 {[%clk 0:01:23]} 20. Qxb2 {[%clk 0:01:47]}  Qe7 {[%clk 0:01:22]} 21. Rd2 {[%clk 0:01:44]}  Nc7 {[%clk 0:01:19]} 22. Rad1 {[%clk 0:01:42]}  Nd5 {[%clk 0:01:19]} 23. Nf4 {[%clk 0:01:38]}  g5 {[%clk 0:01:15]} 24. Nxd5 {[%clk 0:01:37]}  Bxd5 {[%clk 0:01:14]} 25. Qc2 {[%clk 0:00:58]}  f4 {[%clk 0:01:12]} 26. a4 {[%clk 0:00:55]}  Rf7 {[%clk 0:01:05]} 27. b5 {[%clk 0:00:53]}  Rdf8 {[%clk 0:01:05]} 28. bxc6 {[%clk 0:00:42]}  bxc6 {[%clk 0:01:04]} 29. a5 {[%clk 0:00:33]}  h5 {[%clk 0:00:52]} 30. gxf4 {[%clk 0:00:31]}  gxf4 {[%clk 0:00:51]} 31. Kh1 {[%clk 0:00:29]}  f3 {[%clk 0:00:49]} 32. Bh3 {[%clk 0:00:22]}  Qh4 {[%clk 0:00:46]} 33. Be6 {[%clk 0:00:17]}  Be5 {[%clk 0:00:44]} 34. Rg1+ {[%clk 0:00:14]}  Kh8 {[%clk 0:00:43]} 35. Rg3 {[%clk 0:00:12]}  Rg7 {[%clk 0:00:38]} 36. Nf5 {[%clk 0:00:10]}  Rxf5 {[%clk 0:00:25]} 37. Bxf5 {[%clk 0:00:11]}  Bxg3 {[%clk 0:00:21]} 38. fxg3 {[%clk 0:00:10]}  Rxg3 {[%clk 0:00:16]} 39. Rf2 {[%clk 0:00:10]}  Rg7 {[%clk 0:00:12]} 40. Qb2 {[%clk 0:00:07]}  Qg5 {[%clk 0:00:08]} 41. Rf1 {[%clk 0:00:04]}  Qg2+ {[%clk 0:00:08]} 42. Qxg2 {[%clk 0:00:04]}  fxg2+ {[%clk 0:00:08]} 43. Kg1 {[%clk 0:00:05]}  gxf1=Q+ {[%clk 0:00:07]} 44. Kxf1 {[%clk 0:00:06]}  Rf7 {[%clk 0:00:08]} 45. Ke2 {[%clk 0:00:06]}  Rxf5 {[%clk 0:00:08]} 46. Kd2 {[%clk 0:00:07]}  Rf2+ {[%clk 0:00:08]} 0-1


[Site "https://www.chess.com"]

[Event "Titled Tuesday Blitz March 22 Late 2022"]
[White "Atzl, Florian"]
[Black "Zhurbinsky, David"]
[WhiteFideId "1635891"]
[BlackFideId "2072904"]
[WhiteElo "2085"]
[BlackElo "2566"]
[Result "1-0"]
[Round "06"]
[TimeControl "180+1"]
[Date "2022.03.22"]
[WhiteClock "0:00:16"]
[BlackClock "0:00:07"]

1. e4 {[%clk 0:03:00]}  e5 {[%clk 0:02:59]} 2. Bc4 {[%clk 0:03:00]}  Nf6 {[%clk 0:02:59]} 3. d3 {[%clk 0:03:00]}  c6 {[%clk 0:02:57]} 4. Nf3 {[%clk 0:02:59]}  d5 {[%clk 0:02:57]} 5. Bb3 {[%clk 0:02:59]}  Bd6 {[%clk 0:02:55]} 6. O-O {[%clk 0:02:56]}  O-O {[%clk 0:02:53]} 7. Bg5 {[%clk 0:02:52]}  Be6 {[%clk 0:02:42]} 8. exd5 {[%clk 0:02:44]}  cxd5 {[%clk 0:02:40]} 9. Nc3 {[%clk 0:02:43]}  d4 {[%clk 0:02:06]} 10. Ne4 {[%clk 0:02:43]}  Be7 {[%clk 0:01:57]} 11. Nxe5 {[%clk 0:02:23]}  Bxb3 {[%clk 0:01:40]} 12. Nxf6+ {[%clk 0:02:01]}  gxf6 {[%clk 0:01:36]} 13. Bh6 {[%clk 0:02:00]}  Be6 {[%clk 0:01:24]} 14. Qf3 {[%clk 0:01:40]}  Kh8 {[%clk 0:01:14]} 15. Bxf8 {[%clk 0:01:24]}  Bxf8 {[%clk 0:00:48]} 16. Qxb7 {[%clk 0:01:20]}  fxe5 {[%clk 0:00:40]} 17. Qxa8 {[%clk 0:01:19]}  Bd5 {[%clk 0:00:41]} 18. Qxa7 {[%clk 0:01:18]}  Nc6 {[%clk 0:00:35]} 19. Qa4 {[%clk 0:01:10]}  Bd6 {[%clk 0:00:30]} 20. f3 {[%clk 0:01:04]}  Qh4 {[%clk 0:00:26]} 21. c4 {[%clk 0:00:58]}  e4 {[%clk 0:00:20]} 22. f4 {[%clk 0:00:50]}  Bxf4 {[%clk 0:00:11]} 23. Rxf4 {[%clk 0:00:50]}  Qxf4 {[%clk 0:00:12]} 24. cxd5 {[%clk 0:00:47]}  Qe3+ {[%clk 0:00:13]} 25. Kh1 {[%clk 0:00:44]}  Ne7 {[%clk 0:00:05]} 26. Qe8+ {[%clk 0:00:43]}  Ng8 {[%clk 0:00:06]} 27. Qxe4 {[%clk 0:00:43]}  Qf2 {[%clk 0:00:04]} 28. Qe5+ {[%clk 0:00:38]}  f6 {[%clk 0:00:04]} 29. Qe1 {[%clk 0:00:30]}  Qxb2 {[%clk 0:00:05]} 30. d6 {[%clk 0:00:27]}  Qb7 {[%clk 0:00:05]} 31. Qe4 {[%clk 0:00:26]}  Qd7 {[%clk 0:00:02]} 32. Qxd4 {[%clk 0:00:24]}  Kg7 {[%clk 0:00:02]} 33. Re1 {[%clk 0:00:23]}  Kf7 {[%clk 0:00:03]} 34. Qd5+ {[%clk 0:00:22]}  Kf8 {[%clk 0:00:03]} 35. Qa8+ {[%clk 0:00:22]}  Kg7 {[%clk 0:00:03]} 36. Qa5 {[%clk 0:00:21]}  Kh8 {[%clk 0:00:03]} 37. Qc7 {[%clk 0:00:21]}  Qg4 {[%clk 0:00:03]} 38. d7 {[%clk 0:00:20]}  Qh4 {[%clk 0:00:03]} 39. Qg3 {[%clk 0:00:19]}  Qd4 {[%clk 0:00:03]} 40. Qh3 {[%clk 0:00:16]}  Qc3 {[%clk 0:00:02]} 41. Rf1 {[%clk 0:00:16]}  Qxd3 {[%clk 0:00:02]} 42. Qxd3 {[%clk 0:00:16]}  Ne7 {[%clk 0:00:02]} 43. d8=Q+ {[%clk 0:00:15]}  Ng8 {[%clk 0:00:03]} 44. Qxg8+ {[%clk 0:00:15]}  Kxg8 {[%clk 0:00:03]} 45. Qd5+ {[%clk 0:00:15]}  Kg7 {[%clk 0:00:04]} 46. Qd7+ {[%clk 0:00:15]}  Kg6 {[%clk 0:00:04]} 47. Qg4+ {[%clk 0:00:16]}  Kh6 {[%clk 0:00:05]} 48. Qf4+ {[%clk 0:00:16]}  Kh5 {[%clk 0:00:05]} 49. g4+ {[%clk 0:00:15]}  Kg6 {[%clk 0:00:05]} 50. Qf5+ {[%clk 0:00:15]}  Kf7 {[%clk 0:00:05]} 51. Qxf6+ {[%clk 0:00:16]}  Ke8 {[%clk 0:00:06]} 52. Qf7+ {[%clk 0:00:16]}  Kd8 {[%clk 0:00:06]} 53. Rd1+ {[%clk 0:00:16]}  Kc8 {[%clk 0:00:07]} 54. Rd7 {[%clk 0:00:16]}  h5 {[%clk 0:00:07]} 55. Rc7+ {[%clk 0:00:16]}  Kd8 {[%clk 0:00:07]} 56. Qd7# {[%clk 0:00:16]} 1-0


[Site "https://www.chess.com"]

[Event "Titled Tuesday Blitz March 22 Late 2022"]
[White "Avazkhonov, Alikhon"]
[Black "Halkias, Stelios"]
[WhiteFideId "14208504"]
[BlackFideId "4201809"]
[WhiteElo "1739"]
[BlackElo "2453"]
[Result "0-1"]
[Round "06"]
[TimeControl "180+1"]
[Date "2022.03.22"]
[WhiteClock "0:00:01"]
[BlackClock "0:00:22"]

1. f4 {[%clk 0:03:00]}  Nf6 {[%clk 0:02:59]} 2. Nf3 {[%clk 0:03:00]}  g5 {[%clk 0:02:58]} 3. fxg5 {[%clk 0:02:45]}  Ne4 {[%clk 0:02:58]} 4. d3 {[%clk 0:02:44]}  Nd6 {[%clk 0:02:57]} 5. e4 {[%clk 0:02:43]}  Bg7 {[%clk 0:02:57]} 6. e5 {[%clk 0:02:35]}  Nc6 {[%clk 0:02:44]} 7. exd6 {[%clk 0:02:26]}  cxd6 {[%clk 0:02:44]} 8. Nc3 {[%clk 0:02:26]}  e6 {[%clk 0:02:44]} 9. Bf4 {[%clk 0:02:19]}  d5 {[%clk 0:02:41]} 10. d4 {[%clk 0:01:59]}  d6 {[%clk 0:02:41]} 11. Be2 {[%clk 0:01:19]}  O-O {[%clk 0:02:40]} 12. O-O {[%clk 0:01:14]}  e5 {[%clk 0:02:40]} 13. Be3 {[%clk 0:00:46]}  Be6 {[%clk 0:02:38]} 14. Qd2 {[%clk 0:00:38]}  Re8 {[%clk 0:02:37]} 15. Rad1 {[%clk 0:00:36]}  Ne7 {[%clk 0:01:36]} 16. Nh4 {[%clk 0:00:25]}  Rc8 {[%clk 0:01:33]} 17. g4 {[%clk 0:00:22]}  a6 {[%clk 0:01:15]} 18. Nf5 {[%clk 0:00:22]}  Ng6 {[%clk 0:01:15]} 19. Nxg7 {[%clk 0:00:22]}  Kxg7 {[%clk 0:01:15]} 20. dxe5 {[%clk 0:00:21]}  dxe5 {[%clk 0:01:15]} 21. Nxd5 {[%clk 0:00:21]}  Bxd5 {[%clk 0:00:42]} 22. Qxd5 {[%clk 0:00:21]}  Qxd5 {[%clk 0:00:42]} 23. Rxd5 {[%clk 0:00:22]}  Rxc2 {[%clk 0:00:42]} 24. Rd2 {[%clk 0:00:20]}  Rc7 {[%clk 0:00:42]} 25. b3 {[%clk 0:00:15]}  Rc3 {[%clk 0:00:40]} 26. Rd3 {[%clk 0:00:10]}  Rc2 {[%clk 0:00:39]} 27. Rd2 {[%clk 0:00:09]}  Rc3 {[%clk 0:00:39]} 28. Bf2 {[%clk 0:00:08]}  Nf4 {[%clk 0:00:38]} 29. Bg3 {[%clk 0:00:07]}  Nh3+ {[%clk 0:00:32]} 30. Kg2 {[%clk 0:00:07]}  Nxg5 {[%clk 0:00:32]} 31. Bc4 {[%clk 0:00:06]}  b5 {[%clk 0:00:30]} 32. Bxf7 {[%clk 0:00:03]}  Nxf7 {[%clk 0:00:29]} 33. Rd7 {[%clk 0:00:04]}  Rc2+ {[%clk 0:00:29]} 34. Kh3 {[%clk 0:00:04]}  Rf8 {[%clk 0:00:29]} 35. Bxe5+ {[%clk 0:00:04]}  Kg8 {[%clk 0:00:30]} 36. Bf6 {[%clk 0:00:03]}  Ng5+ {[%clk 0:00:24]} 37. Kh4 {[%clk 0:00:01]}  Ne6 {[%clk 0:00:22]} 0-1


[Site "https://www.chess.com"]

[Event "Titled Tuesday Blitz March 22 Late 2022"]
[White "Aydin, Gulenay"]
[Black "Paszewski, Mateusz"]
[WhiteFideId "34557431"]
[BlackFideId "1141058"]
[WhiteElo "1429"]
[BlackElo "2102"]
[Result "0-1"]
[Round "06"]
[TimeControl "180+1"]
[Date "2022.03.22"]
[WhiteClock "0:00:07"]
[BlackClock "0:00:17"]

1. e4 {[%clk 0:03:00]}  c5 {[%clk 0:02:55]} 2. Nf3 {[%clk 0:03:01]}  d6 {[%clk 0:02:56]} 3. d4 {[%clk 0:03:01]}  cxd4 {[%clk 0:02:56]} 4. Nxd4 {[%clk 0:03:02]}  Nf6 {[%clk 0:02:57]} 5. Nc3 {[%clk 0:03:03]}  a6 {[%clk 0:02:58]} 6. f3 {[%clk 0:03:03]}  e5 {[%clk 0:02:58]} 7. Nb3 {[%clk 0:03:04]}  Be6 {[%clk 0:02:58]} 8. Be3 {[%clk 0:03:04]}  h5 {[%clk 0:02:58]} 9. Qd2 {[%clk 0:03:04]}  Nbd7 {[%clk 0:02:58]} 10. O-O-O {[%clk 0:03:04]}  Rc8 {[%clk 0:02:56]} 11. h3 {[%clk 0:03:03]}  h4 {[%clk 0:02:56]} 12. Kb1 {[%clk 0:02:47]}  Be7 {[%clk 0:02:52]} 13. Rg1 {[%clk 0:02:47]}  b5 {[%clk 0:02:46]} 14. g4 {[%clk 0:02:40]}  hxg3 {[%clk 0:02:46]} 15. Rxg3 {[%clk 0:02:40]}  g6 {[%clk 0:02:44]} 16. Rg1 {[%clk 0:01:46]}  Nb6 {[%clk 0:02:30]} 17. Qf2 {[%clk 0:01:39]}  Nfd7 {[%clk 0:02:00]} 18. f4 {[%clk 0:01:37]}  Rxc3 {[%clk 0:01:59]} 19. bxc3 {[%clk 0:01:31]}  Na4 {[%clk 0:02:00]} 20. Bd2 {[%clk 0:01:17]}  exf4 {[%clk 0:01:45]} 21. Qxf4 {[%clk 0:01:12]}  Qc7 {[%clk 0:01:37]} 22. Rg3 {[%clk 0:01:03]}  Ne5 {[%clk 0:01:34]} 23. Be2 {[%clk 0:00:38]}  Bc4 {[%clk 0:01:05]} 24. Qe3 {[%clk 0:00:20]}  Bh4 {[%clk 0:00:57]} 25. Rgg1 {[%clk 0:00:16]}  Bf6 {[%clk 0:00:51]} 26. Rgf1 {[%clk 0:00:15]}  Bg7 {[%clk 0:00:50]} 27. Qf2 {[%clk 0:00:07]}  Rxh3 {[%clk 0:00:23]} 28. Bxc4 {[%clk 0:00:03]}  bxc4 {[%clk 0:00:21]} 29. Rh1 {[%clk 0:00:04]}  Rxh1 {[%clk 0:00:19]} 30. Rxh1 {[%clk 0:00:05]}  cxb3 {[%clk 0:00:20]} 31. axb3 {[%clk 0:00:06]}  Nxc3+ {[%clk 0:00:19]} 32. Kc1 {[%clk 0:00:06]}  Nd3+ {[%clk 0:00:17]} 33. cxd3 {[%clk 0:00:07]}  Nxe4+ {[%clk 0:00:17]} 0-1


[Site "https://www.chess.com"]

[Event "Titled Tuesday Blitz March 22 Late 2022"]
[White "Bachmann, Axel"]
[Black "Koutlas, Nikolaos"]
[WhiteFideId "3700488"]
[BlackFideId "25827138"]
[WhiteElo "2587"]
[BlackElo "1610"]
[Result "1-0"]
[Round "06"]
[TimeControl "180+1"]
[Date "2022.03.22"]
[WhiteClock "0:01:52"]
[BlackClock "0:00:03"]

1. d4 {[%clk 0:02:55]}  Nf6 {[%clk 0:02:58]} 2. g3 {[%clk 0:02:54]}  c5 {[%clk 0:02:55]} 3. d5 {[%clk 0:02:54]}  g6 {[%clk 0:02:54]} 4. c4 {[%clk 0:02:55]}  Bg7 {[%clk 0:02:55]} 5. Nc3 {[%clk 0:02:54]}  e6 {[%clk 0:02:54]} 6. Nf3 {[%clk 0:02:53]}  exd5 {[%clk 0:02:55]} 7. cxd5 {[%clk 0:02:54]}  O-O {[%clk 0:02:55]} 8. Bg2 {[%clk 0:02:54]}  d6 {[%clk 0:02:55]} 9. O-O {[%clk 0:02:54]}  Re8 {[%clk 0:02:55]} 10. Re1 {[%clk 0:02:54]}  a6 {[%clk 0:02:50]} 11. a4 {[%clk 0:02:53]}  Bf5 {[%clk 0:02:47]} 12. Nd2 {[%clk 0:02:41]}  Nbd7 {[%clk 0:02:44]} 13. e4 {[%clk 0:02:38]}  Bg4 {[%clk 0:02:42]} 14. f3 {[%clk 0:02:37]}  Bh5 {[%clk 0:02:13]} 15. g4 {[%clk 0:02:36]}  Ne5 {[%clk 0:01:45]} 16. gxh5 {[%clk 0:02:35]}  Nd3 {[%clk 0:01:45]} 17. hxg6 {[%clk 0:02:20]}  hxg6 {[%clk 0:01:37]} 18. Rf1 {[%clk 0:02:17]}  Nh5 {[%clk 0:01:28]} 19. Nc4 {[%clk 0:02:11]}  Nhf4 {[%clk 0:01:05]} 20. Ne2 {[%clk 0:02:06]}  Nxe2+ {[%clk 0:00:02]} 21. Qxe2 {[%clk 0:02:04]}  Bd4+ {[%clk 0:00:03]} 22. Be3 {[%clk 0:01:52]}  Nc1 {[%clk 0:00:03]} 1-0


[Site "https://www.chess.com"]